bitfinex/quotes_SOLUSD_20250217
["timestamp","ask_amount","ask_price","bid_price","bid_amount"]
[1739757572505,51.77612853,189.49,189.47,0.063]
[1739757573907,112.8,189.48,189.47,0.063]
[1739757578394,118.0776,189.48,189.47,0.063]
[1739757579404,132.48944853,189.48,189.47,0.063]
[1739757579800,19.68944853,189.48,189.47,0.063]
[1739757580507,27.99653639,189.48,189.47,0.063]
[1739757582302,26.99653639,189.48,189.47,0.063]
[1739757582486,27.99653639,189.48,189.47,0.063]
[1739757582686,19.68944853,189.48,189.47,0.063]
[1739757582902,51.80612853,189.49,189.47,0.063]
[1739757583603,14.41184853,189.48,189.47,0.063]
[1739757584990,19.68944853,189.48,189.47,0.063]
[1739757587113,36.18827706,189.48,189.47,0.063]
[1739757589912,35.18827706,189.48,189.47,0.063]
[1739757590596,36.18827706,189.48,189.47,0.063]
[1739757594316,36.21827706,189.48,189.47,0.063]
[1739757594621,30.0,189.43,189.42,0.063]
[1739757594795,43.41184853,189.43,189.42,0.063]
[1739757596308,48.69074853,189.43,189.42,0.063]
[1739757599020,30.0,189.43,189.42,0.063]
[1739757601252,48.69074853,189.43,189.42,0.063]
[1739757601819,50.69074853,189.43,189.42,0.063]
[1739757602037,14.41184853,189.42,189.41,0.063]
[1739757602226,44.41184853,189.41,189.4,0.063]
[1739757602966,49.69134853,189.41,189.4,0.063]
[1739757603445,30.0,189.43,189.4,0.063]
[1739757603622,38.30220158,189.43,189.4,0.063]
[1739757603819,30.0,189.41,189.4,0.063]
[1739757604342,112.3,189.41,189.4,0.063]
[1739757605241,82.3,189.41,189.4,0.063]
[1739757605432,82.33,189.41,189.4,0.063]
[1739757609860,117.6095,189.41,189.4,0.063]
[1739757610269,49.72134853,189.41,189.4,0.063]
[1739757610496,30.0,189.37,189.36,0.14281391]
[1739757610646,43.41184853,189.37,189.36,0.14281391]
[1739757611347,48.69244853,189.37,189.36,0.14281391]
[1739757613369,30.0,189.37,189.36,0.14281391]
[1739757614565,20.0,189.38,189.36,0.14281391]
[1739757615579,112.8,189.37,189.36,0.14281391]
[1739757616463,0.03,189.41,189.36,5.42351391]
[1739757616772,0.03,189.41,189.36,0.14281391]
[1739757617351,0.03,189.41,189.36,5.42371391]
[1739757617673,0.03,189.41,189.37,8.75110904]
[1739757618361,0.03,189.41,189.38,8.75110904]
[1739757620382,0.03,189.41,189.38,14.03120904]
[1739757620683,141.33,189.45,189.38,14.03120904]
[1739757620871,82.3,189.44,189.38,14.03120904]
[1739757621177,82.3,189.44,189.39,8.75110904]
[1739757623164,82.3,189.44,189.38,5.2801]
[1739757623165,82.3,189.44,189.38,8.75110904]
[1739757624172,112.3,189.44,189.37,5.2806]
[1739757624381,30.0,189.42,189.36,0.14281391]
[1739757625376,82.3,189.41,189.36,0.14281391]
[1739757625690,82.3,189.4,189.36,5.42361391]
[1739757625871,82.3,189.4,189.36,14.17472295]
[1739757626071,82.3,189.4,189.37,8.75110904]
[1739757627798,82.3,189.4,189.38,5.2803]
[1739757627978,5.2779,189.47,189.38,14.03140904]
[1739757627979,82.3,189.45,189.38,14.03140904]
[1739757628183,82.3,189.45,189.39,8.75110904]
[1739757628384,110.03,189.47,189.4,8.75110904]
[1739757628893,0.03,189.48,189.43,1.6307]
[1739757629204,0.03,189.48,189.43,10.38180904]
[1739757630085,0.03,189.48,189.44,5.2787]
[1739757630392,0.03,189.48,189.43,1.6307]
[1739757632491,0.03,189.48,189.38,1.6307]
[1739757632492,30.0,189.45,189.38,1.6307]
[1739757632681,30.0,189.45,189.36,15.16382295]
[1739757632682,30.0,189.43,189.36,0.14281391]
[1739757633198,30.0,189.41,189.36,0.14281391]
[1739757633388,110.03,189.4,189.36,0.14281391]
[1739757634301,30.0,189.39,189.36,0.14281391]
[1739757635098,140.03,189.39,189.36,0.14281391]
[1739757635300,110.03,189.38,189.36,0.14281391]
[1739757638512,30.0,189.37,189.36,0.14281391]
[1739757641007,30.0,189.4,189.36,0.14281391]
[1739757641583,87.5795,189.41,189.36,0.14281391]
[1739757642410,30.0,189.4,189.36,0.14281391]
[1739757642709,30.0,189.38,189.36,0.14281391]
[1739757644509,5.2802,189.39,189.36,0.14281391]
[1739757644996,87.5797,189.41,189.36,0.14281391]
[1739757645189,82.3,189.39,189.36,0.14281391]
[1739757647605,112.3,189.42,189.36,0.14281391]
[1739757647818,112.3,189.42,189.36,5.42371391]
[1739757653218,117.5792,189.42,189.36,0.14281391]
[1739757656007,82.3,189.42,189.37,8.77197525]
[1739757657716,82.3,189.42,189.37,14.05257525]
[1739757659210,82.3,189.42,189.37,5.2806]
[1739757659814,0.03,189.48,189.39,8.77197525]
[1739757659993,0.03,189.48,189.4,8.77197525]
[1739757660196,0.0071989,189.48,189.4,8.77197525]
[1739757660404,0.0071989,189.48,189.37,6.9424]
[1739757660405,0.0071989,189.48,189.41,8.77197525]
[1739757661116,0.0071989,189.48,189.41,5.2792]
[1739757662014,0.0071989,189.48,189.41,14.05117525]
[1739757662407,0.0071989,189.48,189.41,5.2792]
[1739757663326,0.0071989,189.48,189.41,14.05117525]
[1739757664128,0.0071989,189.48,189.43,8.77197525]
[1739757665326,0.0071989,189.48,189.46,0.07981391]
[1739757668219,0.0071989,189.48,189.46,8.85178916]
[1739757668422,0.0071989,189.48,189.46,0.07981391]
[1739757670226,0.0071989,189.48,189.46,5.35791391]
[1739757670539,0.0071989,189.48,189.46,0.07981391]
[1739757671325,30.0071989,189.48,189.46,0.07981391]
[1739757672221,100.98964853,189.47,189.46,0.07981391]
[1739757672427,212.48964853,189.47,189.46,0.07981391]
[1739757675118,18.68964853,189.47,189.46,0.07981391]
[1739757675409,18.68964853,189.47,189.36,0.063]
[1739757675410,30.0,189.43,189.36,0.063]
[1739757675613,13.41184853,189.4,189.36,0.063]
[1739757675812,30.0,189.39,189.36,0.063]
[1739757676812,5.2803,189.38,189.36,0.063]
[1739757679141,35.2802,189.39,189.36,0.063]
[1739757680015,18.69164853,189.4,189.36,0.063]
[1739757681015,30.0,189.39,189.36,0.063]
[1739757682140,13.41184853,189.38,189.36,0.063]
[1739757683338,35.2806,189.37,189.36,0.063]
[1739757683523,48.69244853,189.37,189.36,0.063]
[1739757683930,49.69244853,189.37,189.36,0.063]
[1739757684937,49.69244853,189.37,189.33,0.063]
[1739757684938,50.0,189.34,189.33,0.063]
[1739757685123,63.41184853,189.34,189.33,0.063]
[1739757685541,68.69334853,189.34,189.33,0.063]
[1739757694628,82.3,189.35,189.33,0.063]
[1739757694629,30.0,189.38,189.33,0.063]
[1739757694830,141.5,189.38,189.33,0.063]
[1739757696040,146.7804,189.38,189.33,0.063]
[1739757701551,146.8104,189.38,189.33,0.063]
[1739757704146,141.53,189.38,189.33,0.063]
[1739757704540,223.83,189.38,189.33,0.063]
[1739757705057,193.83,189.38,189.33,0.063]
[1739757710471,82.33,189.38,189.33,0.063]
[1739757717071,0.03,189.38,189.34,8.77701586]
[1739757717269,0.03,189.38,189.35,8.77701586]
[1739757718686,0.03,189.38,189.36,5.2809]
[1739757720380,0.03,189.38,189.34,8.77701586]
[1739757720889,0.03,189.38,189.33,8.84001586]
[1739757721188,0.03,189.38,189.34,8.77701586]
[1739757721651,0.03,189.38,189.33,0.063]
[1739757721855,0.03,189.38,189.33,5.3447]
[1739757722786,0.03,189.38,189.33,14.12171586]
[1739757724575,0.03,189.38,189.33,0.063]
[1739757724787,30.03,189.38,189.33,0.063]
[1739757725484,30.0,189.36,189.33,0.063]
[1739757726187,13.41184853,189.35,189.33,0.063]
[1739757726787,5.2815,189.34,189.33,0.063]
[1739757727768,207.21184853,189.35,189.33,0.063]
[1739757728284,193.8,189.35,189.33,0.063]
[1739757731090,199.0812,189.35,189.33,0.063]
[1739757732156,154.91184853,189.34,189.33,0.063]
[1739757733467,160.19334853,189.34,189.33,0.063]
[1739757734476,111.5,189.34,189.33,0.063]
[1739757735382,30.03,189.38,189.33,0.063]
[1739757737085,13.41184853,189.35,189.33,0.063]
[1739757737286,43.41184853,189.34,189.33,0.063]
[1739757738483,48.69334853,189.34,189.33,0.063]
[1739757739887,13.41184853,189.34,189.33,0.063]
[1739757740193,111.5,189.35,189.33,0.063]
[1739757740492,87.5806,189.37,189.33,0.063]
[1739757740493,82.3,189.37,189.33,0.063]
[1739757741374,87.5807,189.37,189.33,0.063]
[1739757742204,82.3,189.37,189.33,0.063]
[1739757742405,0.03,189.38,189.33,0.063]
[1739757748868,30.03,189.38,189.33,0.063]
[1739757749071,13.41184853,189.37,189.33,0.063]
[1739757749291,30.0,189.35,189.33,0.063]
[1739757751898,0.03,189.36,189.33,0.063]
[1739757752108,193.83,189.36,189.33,0.063]
[1739757753197,5.2812,189.35,189.33,0.063]
[1739757753376,35.2812,189.35,189.33,0.063]
[1739757754880,95.71184853,189.34,189.33,0.063]
[1739757755198,13.41184853,189.34,189.33,0.063]
[1739757757399,18.69334853,189.34,189.33,0.063]
[1739757758680,141.5,189.35,189.33,0.063]
[1739757759178,146.7812,189.35,189.33,0.063]
[1739757759384,13.41184853,189.34,189.33,0.063]
[1739757760492,141.5,189.35,189.33,0.063]
[1739757760493,0.03,189.36,189.33,0.063]
[1739757761598,0.03,189.36,189.34,13.7125451]
[1739757762717,0.03,189.36,189.34,14.05293462]
[1739757762886,0.03,189.36,189.34,5.2815]
[1739757767694,0.03,189.36,189.33,1.5693]
[1739757768123,0.03,189.36,189.33,6.8509]
[1739757769805,0.03,189.36,189.33,1.5693]
[1739757770603,0.03,189.36,189.33,6.851]
[1739757771387,0.03,189.36,189.33,1.5693]
[1739757772210,0.03,189.36,189.33,0.063]
[1739757773018,13.41184853,189.35,189.33,0.063]
[1739757774106,5.2815,189.34,189.33,0.063]
[1739757774512,160.19334853,189.34,189.33,0.063]
[1739757775588,111.5,189.34,189.33,0.063]
[1739757778815,5.2815,189.34,189.33,0.063]
[1739757778999,48.69334853,189.34,189.33,0.063]
[1739757784624,13.41184853,189.34,189.33,0.063]
[1739757785894,82.3,189.35,189.33,0.063]
[1739757788830,0.03,189.36,189.34,13.70779963]
[1739757789335,0.03,189.36,189.33,13.77079963]
[1739757789920,0.03,189.36,189.34,5.2815]
[1739757792730,0.03,189.36,189.35,13.70779963]
[1739757793031,0.03,189.36,189.35,18.98899963]
[1739757794046,0.03,189.36,189.35,27.16429963]
[1739757796136,0.03,189.46,189.45,1.0]
[1739757796435,0.03,189.46,189.45,13.70779963]
[1739757797413,0.03,189.46,189.44,20.31369963]
[1739757798227,0.03,189.46,189.45,5.2784]
[1739757799632,0.03,189.46,189.45,18.98619963]
[1739757800732,0.0071989,189.48,189.47,20.0]
[1739757800935,0.0071989,189.48,189.47,33.70779963]
[1739757802853,0.0071989,189.48,189.47,38.98559963]
[1739757803425,9.89e-05,189.5,189.47,41.77701431]
[1739757803740,9.89e-05,189.5,189.49,13.70779963]
[1739757804749,9.89e-05,189.5,189.49,18.98509963]
[1739757807953,9.89e-05,189.5,189.49,37.06892535]
[1739757808730,9.89e-05,189.5,189.49,53.41381159]
[1739757808928,9.89e-05,189.5,189.49,17.6141971]
[1739757810731,9.89e-05,189.5,189.49,16.6141971]
[1739757810931,9.89e-05,189.5,189.49,14.0293971]
[1739757811132,9.89e-05,189.5,189.49,5.2773]
[1739757812953,9.89e-05,189.5,189.47,5.2778]
[1739757814452,9.89e-05,189.5,189.48,13.68598097]
[1739757814953,9.89e-05,189.5,189.49,13.68598097]
[1739757816241,9.89e-05,189.5,189.49,14.68598097]
[1739757816441,9.89e-05,189.5,189.49,18.96328097]
[1739757823772,9.89e-05,189.5,189.49,5.2773]
[1739757823976,9.89e-05,189.5,189.47,5.3406]
[1739757824154,9.89e-05,189.5,189.47,0.063]
[1739757824759,30.0000989,189.5,189.47,0.063]
[1739757825658,9.89e-05,189.5,189.47,0.063]
[1739757830273,30.0000989,189.5,189.47,0.063]
[1739757830463,13.41184853,189.49,189.47,0.063]
[1739757830673,43.41184853,189.48,189.47,0.063]
[1739757831671,48.68944853,189.48,189.47,0.063]
[1739757833871,43.41184853,189.48,189.47,0.063]
[1739757834474,48.68944853,189.48,189.47,0.063]
[1739757843865,111.5,189.49,189.47,0.063]
[1739757847084,199.0774,189.49,189.47,0.063]
[1739757847383,48.68944853,189.48,189.47,0.063]
[1739757848779,9.89e-05,189.5,189.47,0.063]
[1739757848979,35.2770989,189.5,189.47,0.063]
[1739757849280,30.0,189.48,189.47,0.063]
[1739757849864,30.0000989,189.5,189.47,0.063]
[1739757850087,9.89e-05,189.5,189.47,0.063]
[1739757852161,9.89e-05,189.5,189.47,8.83036364]
[1739757852582,9.89e-05,189.5,189.47,13.74868939]
[1739757853477,9.89e-05,189.5,189.48,5.2776]
[1739757854492,9.89e-05,189.5,189.49,13.68568939]
[1739757855789,9.89e-05,189.5,189.49,18.96298939]
[1739757860996,9.89e-05,189.5,189.49,19.96298939]
[1739757863206,9.89e-05,189.5,189.49,18.96298939]
[1739757863410,9.89e-05,189.5,189.49,5.2773]
[1739757864189,9.89e-05,189.5,189.47,5.3406]
[1739757866184,9.89e-05,189.5,189.47,19.02628939]
[1739757866886,9.89e-05,189.5,189.48,13.68568939]
[1739757867087,9.89e-05,189.5,189.48,5.2776]
[1739757870007,9.89e-05,189.5,189.47,19.02648939]
[1739757870193,9.89e-05,189.5,189.48,13.68568939]
[1739757871211,9.89e-05,189.5,189.48,13.74868939]
[1739757871590,9.89e-05,189.5,189.49,5.2773]
[1739757872091,9.89e-05,189.5,189.48,0.063]
[1739757873693,82.3,189.49,189.48,0.063]
[1739757873911,112.3,189.49,189.48,0.063]
[1739757874715,125.71184853,189.49,189.48,0.063]
[1739757875017,43.41184853,189.49,189.48,0.063]
[1739757876002,48.68914853,189.49,189.48,0.063]
[1739757877414,56.30134853,189.49,189.48,0.063]
[1739757882497,30.0,189.42,189.36,0.063]
[1739757883726,35.2792,189.42,189.36,0.063]
[1739757884114,13.41184853,189.41,189.36,0.063]
[1739757885135,18.69144853,189.41,189.36,0.063]
[1739757886027,30.0,189.4,189.36,0.063]
[1739757886522,13.41184853,189.39,189.36,0.063]
[1739757887420,112.3,189.38,189.36,0.063]
[1739757890541,95.71184853,189.37,189.36,0.063]
[1739757891528,100.99244853,189.37,189.36,0.063]
[1739757894514,18.69244853,189.37,189.36,0.063]
[1739757898538,13.41184853,189.37,189.36,0.063]
[1739757900439,18.69244853,189.37,189.36,0.063]
[1739757901670,63.41184853,189.34,189.33,0.063]
[1739757901951,30.0,189.32,189.31,0.063]
[1739757902162,43.41184853,189.32,189.31,0.063]
[1739757903775,48.69384853,189.32,189.31,0.063]
[1739757905175,30.0,189.28,189.21,5.1631]
[1739757907845,30.0,189.28,189.21,18.88927799]
[1739757908052,30.0,189.28,189.22,13.72617799]
[1739757908254,193.8,189.29,189.23,13.72617799]
[1739757909083,193.8,189.29,189.24,5.2842]
[1739757909876,193.8,189.29,189.24,19.01037799]
[1739757910356,193.8,189.29,189.27,1.6523]
[1739757910555,0.063,189.33,189.27,1.6523]
[1739757910556,112.363,189.33,189.27,1.6523]
[1739757911074,117.6448,189.33,189.27,1.6523]
[1739757911274,112.363,189.33,189.27,1.6523]
[1739757911601,112.363,189.33,189.27,6.9356]
[1739757911880,30.0,189.31,189.24,5.2841]
[1739757912057,13.41184853,189.3,189.23,6.9047]
[1739757912257,95.71184853,189.3,189.23,6.9047]
[1739757912479,30.0,189.29,189.23,6.9047]
[1739757913563,35.2829,189.29,189.23,6.9047]
[1739757913967,13.41184853,189.28,189.23,1.6202]
[1739757914395,30.0,189.25,189.21,0.03]
[1739757915584,87.5834,189.27,189.21,0.03]
[1739757915585,112.3,189.27,189.21,0.03]
[1739757918326,82.3,189.27,189.21,0.03]
[1739757919296,82.3,189.27,189.21,13.75617799]
[1739757919661,82.3,189.27,189.22,13.72617799]
[1739757920479,82.3,189.27,189.21,0.03]
[1739757920772,112.3,189.27,189.21,0.03]
[1739757921167,82.3,189.27,189.21,0.03]
[1739757922600,82.3,189.27,189.21,5.3151]
[1739757922800,112.3,189.27,189.21,5.3151]
[1739757923001,117.5835,189.27,189.21,0.03]
[1739757923199,112.3,189.27,189.21,0.03]
[1739757924605,30.0,189.25,189.21,0.03]
[1739757924815,13.41184853,189.24,189.21,0.03]
[1739757926192,30.0,189.23,189.21,0.03]
[1739757926599,95.71184853,189.24,189.21,0.03]
[1739757928098,30.0,189.23,189.21,0.03]
[1739757929292,13.41184853,189.22,189.21,0.03]
[1739757930106,18.69664853,189.22,189.21,0.03]
[1739757930305,130.19664853,189.22,189.21,0.03]
[1739757933293,18.69664853,189.22,189.21,0.03]
[1739757933818,13.41184853,189.22,189.21,0.03]
[1739757934311,13.41184853,189.22,189.12,20.0]
[1739757934614,13.41184853,189.22,189.14,13.72617799]
[1739757934820,111.5,189.24,189.15,15.31067799]
[1739757935023,111.5,189.24,189.16,13.72617799]
[1739757935321,30.063,189.25,189.16,13.72617799]
[1739757935487,30.063,189.25,189.17,5.2862]
[1739757936111,30.063,189.25,189.17,19.01237799]
[1739757936413,0.063,189.25,189.18,13.72617799]
[1739757936786,30.063,189.25,189.17,19.01237799]
[1739757936994,30.063,189.25,189.17,5.2862]
[1739757937210,13.41184853,189.24,189.17,5.2862]
[1739757937403,30.0,189.23,189.17,5.2862]
[1739757937604,30.0,189.23,189.16,5.2865]
[1739757939199,13.41184853,189.22,189.15,1.5845]
[1739757939509,13.41184853,189.2,189.14,5.2868]
[1739757940404,13.41184853,189.2,189.13,5.2873]
[1739757941116,30.0,189.19,189.13,5.2873]
[1739757942214,13.41184853,189.18,189.11,5.2876]
[1739757944023,13.41184853,189.18,189.13,0.03]
[1739757945509,30.0,189.17,189.13,0.03]
[1739757945712,13.41184853,189.16,189.13,0.03]
[1739757946822,193.8,189.17,189.13,0.03]
[1739757951004,82.3,189.17,189.13,0.03]
[1739757956349,87.5862,189.17,189.13,0.03]
[1739757957946,82.3,189.17,189.13,0.03]
[1739757958321,87.5863,189.17,189.13,0.03]
[1739757959349,82.3,189.17,189.13,0.03]
[1739757959846,87.5863,189.17,189.13,0.03]
[1739757963747,43.41184853,189.16,189.13,0.03]
[1739757964434,5.2868,189.15,189.13,0.03]
[1739757971965,5.2866,189.16,189.13,0.03]
[1739757972534,87.6492,189.17,189.13,0.03]
[1739757974849,43.41184853,189.16,189.13,0.03]
[1739757975139,48.69854853,189.16,189.13,0.03]
[1739757979360,5.2867,189.16,189.13,0.03]
[1739757981464,35.2867,189.16,189.13,0.03]
[1739757983659,5.2867,189.16,189.13,0.03]
[1739757985175,35.2867,189.16,189.13,0.03]
[1739757994780,87.6493,189.17,189.13,0.03]
[1739757994976,82.363,189.17,189.13,0.03]
[1739757995981,0.063,189.17,189.13,8.82436878]
[1739757996178,0.063,189.17,189.14,8.79436878]
[1739757997765,0.063,189.17,189.15,8.79436878]
[1739757998566,0.063,189.17,189.14,14.08116878]
[1739757998765,0.063,189.17,189.14,8.79436878]
[1739757998985,0.063,189.17,189.13,1.6355]
[1739757999382,0.063,189.17,189.13,0.03]
[1739757999785,5.3492,189.17,189.13,0.03]
[1739758000374,0.063,189.17,189.13,0.03]
[1739758002086,0.063,189.17,189.13,8.82436878]
[1739758003107,0.063,189.17,189.13,0.03]
[1739758005814,0.063,189.17,189.13,8.82436878]
[1739758006697,0.063,189.17,189.13,0.03]
[1739758008514,30.0,189.16,189.13,0.03]
[1739758010323,5.2868,189.15,189.13,0.03]
[1739758013426,0.063,189.17,189.13,0.03]
[1739758013614,5.3492,189.17,189.13,0.03]
[1739758030136,30.0,189.16,189.13,0.03]
[1739758030444,5.2868,189.15,189.13,0.03]
[1739758033336,43.41184853,189.14,189.13,0.03]
[1739758034817,48.69884853,189.14,189.13,0.03]
[1739758040255,48.76184853,189.14,189.13,0.03]
[1739758042463,35.35,189.14,189.13,0.03]
[1739758044049,48.76184853,189.14,189.13,0.03]
[1739758046158,0.063,189.14,189.13,0.03]
[1739758051653,0.063,189.14,189.13,5.3173]
[1739758051959,0.063,189.14,189.13,14.11166878]
[1739758053055,0.063,189.17,189.15,1.0]
[1739758053250,0.063,189.17,189.16,8.79436878]
[1739758053869,0.063,189.17,189.16,14.08086878]
[1739758054163,0.063,189.17,189.16,15.08086878]
[1739758054378,0.063,189.17,189.16,14.08086878]
[1739758054548,0.063,189.17,189.16,15.08086878]
[1739758055067,0.063,189.18,189.17,2.5521]
[1739758055371,0.063,189.18,189.17,11.34646878]
[1739758055742,0.063,189.18,189.17,10.34646878]
[1739758056060,0.063,189.18,189.17,16.63266878]
[1739758056661,0.063,189.18,189.17,15.63266878]
[1739758057060,0.063,189.18,189.17,16.63266878]
[1739758060951,0.063,189.18,189.17,15.63266878]
[1739758061870,0.063,189.18,189.17,1.5521]
[1739758062443,0.063,189.18,189.13,102.15816878]
[1739758062674,0.063,189.18,189.13,20.65816878]
[1739758062885,0.063,189.18,189.16,20.0]
[1739758066879,0.063,189.18,189.14,8.79436878]
[1739758067054,0.063,189.18,189.13,0.03]
[1739758068452,35.3489,189.18,189.13,0.03]
[1739758069577,30.0,189.16,189.13,0.03]
[1739758070477,5.2868,189.15,189.13,0.03]
[1739758071073,30.0,189.14,189.13,0.03]
[1739758071377,43.41184853,189.14,189.13,0.03]
[1739758072776,48.69884853,189.14,189.13,0.03]
[1739758074981,56.85304853,189.14,189.13,0.03]
[1739758075157,30.0,189.1,189.08,0.03]
[1739758076883,5.2884,189.09,189.08,0.03]
[1739758078189,18.70024853,189.09,189.08,0.03]
[1739758080882,130.20024853,189.09,189.08,0.03]
[1739758090617,18.70024853,189.09,189.08,0.03]
[1739758099215,30.0,189.05,189.02,0.03]
[1739758100244,30.0,189.03,189.02,0.03]
[1739758100432,43.41184853,189.03,189.02,0.03]
[1739758102442,48.70194853,189.03,189.02,0.03]
[1739758110950,30.0,188.97,188.94,1.6834]
[1739758111127,30.0,188.97,188.94,0.03]
[1739758112647,35.2919,188.97,188.94,0.03]
[1739758114222,30.0,188.95,188.94,0.03]
[1739758114634,30.0,188.97,188.94,0.03]
[1739758115856,35.2918,188.97,188.94,0.03]
[1739758116532,13.41184853,188.96,188.94,0.03]
[1739758116844,30.0,188.95,188.94,0.03]
[1739758118420,35.2924,188.95,188.94,0.03]
[1739758119323,30.0,188.95,188.94,0.03]
[1739758119650,146.7918,188.97,188.94,0.03]
[1739758120355,35.2918,188.97,188.94,0.03]
[1739758120653,30.0,188.95,188.94,0.03]
[1739758122439,35.2924,188.95,188.94,0.03]
[1739758122748,30.0,188.95,188.94,0.03]
[1739758123859,35.2924,188.95,188.94,0.03]
[1739758124834,30.0,188.97,188.94,0.03]
[1739758125129,5.2921,188.96,188.94,0.03]
[1739758126452,35.2918,188.97,188.94,0.03]
[1739758128253,82.3,188.98,188.94,0.03]
[1739758128755,5.291,189.0,188.94,0.03]
[1739758129060,35.2907,189.01,188.94,0.03]
[1739758129547,141.563,189.03,188.94,0.03]
[1739758129752,146.8531,189.03,188.94,0.03]
[1739758129942,30.0,189.0,188.94,0.03]
[1739758130453,30.0,189.02,188.94,0.03]
[1739758130862,30.0,189.0,188.94,0.03]
[1739758131166,35.2911,189.0,188.94,0.03]
[1739758133057,30.0,188.97,188.94,0.03]
[1739758133238,5.2918,188.97,188.94,0.03]
[1739758134063,35.2914,188.99,188.94,0.03]
[1739758134867,30.0,188.97,188.94,0.03]
[1739758135037,35.2919,188.97,188.94,0.03]
[1739758135837,5.2919,188.97,188.94,0.03]
[1739758136165,5.2915,188.98,188.94,0.03]
[1739758136868,30.0,188.97,188.94,0.03]
[1739758137367,5.2915,188.98,188.94,0.03]
[1739758137866,5.2912,189.0,188.94,0.03]
[1739758138450,30.0,189.01,188.94,0.03]
[1739758138646,199.1537,189.02,188.94,0.03]
[1739758138647,199.1534,189.02,188.94,0.03]
[1739758139236,0.063,189.02,188.95,8.79436878]
[1739758140761,0.063,189.02,188.97,1.5133]
[1739758140958,0.063,189.02,188.97,10.30766878]
[1739758141343,0.063,189.02,188.97,1.5133]
[1739758141945,0.063,189.02,188.94,5.3224]
[1739758142543,0.063,189.02,188.94,14.11676878]
[1739758143450,30.0,188.99,188.94,0.03]
[1739758143659,30.0,188.97,188.94,0.03]
[1739758144880,35.2921,188.97,188.94,0.03]
[1739758145562,116.7912,189.0,188.94,0.03]
[1739758146244,111.5,189.0,188.94,8.82436878]
[1739758146664,0.063,189.02,188.96,8.79436878]
[1739758146873,0.063,189.02,188.96,10.30766878]
[1739758147548,0.063,189.02,188.96,1.5133]
[1739758150073,0.063,189.02,188.96,6.8054]
[1739758150295,0.063,189.02,188.97,8.79436878]
[1739758151372,0.063,189.02,188.96,6.8054]
[1739758152176,0.063,189.02,188.96,1.5133]
[1739758153053,0.063,189.02,188.95,0.03]
[1739758153054,30.0,189.01,188.95,0.03]
[1739758153252,30.0,188.99,188.95,0.03]
[1739758154379,5.2915,188.98,188.95,0.03]
[1739758157286,30.0,188.97,188.95,0.03]
[1739758158285,35.292,188.97,188.95,0.03]
[1739758164688,18.70394853,188.96,188.95,0.03]
[1739758166188,5.2921,188.96,188.95,0.03]
[1739758166876,18.70394853,188.96,188.95,0.03]
[1739758170988,19.70394853,188.96,188.95,0.03]
[1739758172198,18.70394853,188.96,188.95,0.03]
[1739758184706,5.2921,188.96,188.95,0.03]
[1739758185310,30.0,188.97,188.95,0.03]
[1739758185485,35.2918,188.97,188.95,0.03]
[1739758186096,5.2915,188.98,188.95,0.03]
[1739758186294,30.0,188.97,188.95,0.03]
[1739758186798,5.2915,188.98,188.95,0.03]